{"text_format":"3","workbook":"xlsx","n_sheets":1,"sheets":["Έξοδα έναρξης"],"not_rendered":{"defined_names":1},"read":"whole","date_system":"1900"}

{"sheet":"Έξοδα έναρξης","index":0,"n_rows":120,"n_cols":4,"rows_kept":120,"merged":[[1,1,1,3],[10,1,10,3],[17,1,17,3],[25,1,25,3],[34,1,34,3],[42,1,42,3],[50,1,50,3],[55,1,55,3],[57,1,57,3],[59,1,59,3],[60,1,60,3],[69,1,69,3],[76,1,76,3],[81,1,81,3],[82,1,82,3],[90,1,90,3],[102,1,102,3],[110,1,110,3],[115,1,115,3]]}
["ΕΞΟΔΑ ΕΝΑΡΞΗΣ",null,null,"ΕΠΩΝΥΜΙΑ ΕΤΑΙΡΕΙΑΣ"]
[null,"ΔΥΟ ΛΟΓΙΑ ΠΡΙΝ ΧΡΗΣΙΜΟΠΟΙΗΣΕΤΕ ΑΥΤΟ ΤΟ ΦΥΛΛΟ ΕΡΓΑΣΙΑΣ\nΣχεδόν όποιος έχει ξεκινήσει ποτέ μια επιχείρηση έχει υποτιμήσει τα έξοδα και έχει αντιμετωπίσει τον κίνδυνο της λειτουργίας με ανεπαρκή αποθεματικά κεφάλαια. Για να αποφύγετε αυτή την παγίδα, πρέπει να είστε σχολαστικοί στην έρευνα και τον σχεδιασμό σας. Το πρότυπο εξόδων έναρξης που προσφέρουμε θα σας καθοδηγήσει σε αυτή τη διαδικασία.\n\nΞΕΚΙΝΗΣΤΕ ΜΕ ΜΙΑ ΕΚΤΙΜΗΣΗ ΤΩΝ ΕΞΟΔΩΝ\nΠόσο θα σας κοστίσει να ξεκινήσετε τη λειτουργία της επιχείρησής σας; Το μυστικό για την ακρίβεια εδώ είναι η προσοχή στις λεπτομέρειες. Για κάθε κατηγορία εξόδων, φτιάξτε μια λίστα με όλα όσα θα χρειαστεί να αγοράσετε. Θα περιλαμβάνει τόσο τα υλικά πάγια (για παράδειγμα, εξοπλισμός, απόθεμα) όσο και υπηρεσίες (για παράδειγμα, ανακαίνιση, ασφάλεια). Στη συνέχεια, προσδιορίστε πού θα μπορούσατε να αγοράσετε αυτά τα προϊόντα ή υπηρεσίες. Κάντε έρευνα αγοράς και μην περιορίζεστε σε έναν μόνο προμηθευτή. Μην κοιτάτε μόνο την τιμή. Οι όροι πληρωμής, η παράδοση, η αξιοπιστία και η εξυπηρέτηση είναι επίσης σημαντικά. "]
[]
[null,"ΕΞΟΔΑ ΕΝΑΡΞΗΣ"]
[null,"ΚΤΙΡΙΑ/ΑΚΙΝΗΤΑ"," ","ΠΟΣΟ"]
[null,"Αγορά",null,{"v":0,"d":"0.00 €"}]
[null,"Κατασκευή",null,{"v":0,"d":"0.00 €"}]
[null,"Ανακαίνιση",null,{"v":0,"d":"0.00 €"}]
[null,"Άλλο",null,{"v":0,"d":"0.00 €"}]
[null,"Άθροισμα",null,{"$f":"SUBTOTAL(109,Ακίνητα[ΠΟΣΟ])","v":{"v":0,"d":"0.00 €"}}]
[]
[null,"ΒΕΛΤΙΩΣΕΙΣ ΜΙΣΘΙΩΝ"," ","ΠΟΣΟ"]
[null,"Στοιχείο 1",null,{"v":0,"d":"0.00 €"}]
[null,"Στοιχείο 2",null,{"v":0,"d":"0.00 €"}]
[null,"Στοιχείο 3",null,{"v":0,"d":"0.00 €"}]
[null,"Στοιχείο 4",null,{"v":0,"d":"0.00 €"}]
[null,"Άθροισμα",null,{"$f":"SUBTOTAL(109,Βελτιώσεις[ΠΟΣΟ])","v":{"v":0,"d":"0.00 €"}}]
[]
[null,"ΛΙΣΤΑ ΚΕΦΑΛΑΙΟΥΧΙΚΟΥ ΕΞΟΠΛΙΣΜΟΥ"," ","ΠΟΣΟ"]
[null,"Έπιπλα",null,{"v":0,"d":"0.00 €"}]
[null,"Εξοπλισμός",null,{"v":0,"d":"0.00 €"}]
[null,"Προσαρτήματα",null,{"v":0,"d":"0.00 €"}]
[null,"Μηχανήματα",null,{"v":0,"d":"0.00 €"}]
[null,"Άλλο",null,{"v":0,"d":"0.00 €"}]
[null,"Άθροισμα",null,{"$f":"SUBTOTAL(109,Κεφάλαιο[ΠΟΣΟ])","v":{"v":0,"d":"0.00 €"}}]
[]
[null,"ΕΞΟΔΑ ΓΡΑΦΕΙΩΝ ΚΑΙ ΔΙΟΙΚΗΤΙΚΑ ΕΞΟΔΑ"," ","ΠΟΣΟ"]
[null,"Ενοίκιο",null,{"v":0,"d":"0.00 €"}]
[null,"Εγγυήσεις επιχειρήσεων κοινής ωφέλειας",null,{"v":0,"d":"0.00 €"}]
[null,"Νομικά και λογιστικά έξοδα",null,{"v":0,"d":"0.00 €"}]
[null,"Προπληρωμένη ασφάλεια",null,{"v":0,"d":"0.00 €"}]
[null,"Μισθοί πριν από την έναρξη ",null,{"v":0,"d":"0.00 €"}]
[null,"Άλλο",null,{"v":0,"d":"0.00 €"}]
[null,"Άθροισμα",null,{"$f":"SUBTOTAL(109,ΔιοικητικάΈξοδα[ΠΟΣΟ])","v":{"v":0,"d":"0.00 €"}}]
[]
[null,"ΑΠΟΘΕΜΑ ΕΝΑΡΞΗΣ ΧΡΗΣΗΣ"," ","ΠΟΣΟ"]
[null,"Κατηγορία 1",null,{"v":0,"d":"0.00 €"}]
[null,"Κατηγορία 2",null,{"v":0,"d":"0.00 €"}]
[null,"Κατηγορία 3",null,{"v":0,"d":"0.00 €"}]
[null,"Κατηγορία 4",null,{"v":0,"d":"0.00 €"}]
[null,"Κατηγορία 5",null,{"v":0,"d":"0.00 €"}]
[null,"Άθροισμα",null,{"$f":"SUBTOTAL(109,ΑπόθεμαΈναρξηςΧρήσης[ΠΟΣΟ])","v":{"v":0,"d":"0.00 €"}}]
[]
[null,"ΕΞΟΔΑ ΔΙΑΦΗΜΙΣΗΣ ΚΑΙ ΠΡΟΩΘΗΣΗΣ"," ","ΠΟΣΟ"]
[null,"Διαφήμιση",null,{"v":0,"d":"0.00 €"}]
[null,"Επιγραφές",null,{"v":0,"d":"0.00 €"}]
[null,"Εκτυπώσεις",null,{"v":0,"d":"0.00 €"}]
[null,"Ταξίδια/ψυχαγωγία",null,{"v":0,"d":"0.00 €"}]
[null,"Άλλο / πρόσθετες κατηγορίες",null,{"v":0,"d":"0.00 €"}]
[null,"Άθροισμα",null,{"$f":"SUBTOTAL(109,ΈξοδαΠροώθησης[ΠΟΣΟ])","v":{"v":0,"d":"0.00 €"}}]
[]
[null,"ΑΛΛΑ ΕΞΟΔΑ"," ","ΠΟΣΟ"]
[null,"Άλλα έξοδα 1",null,{"v":0,"d":"0.00 €"}]
[null,"Άλλα έξοδα 2",null,{"v":0,"d":"0.00 €"}]
[null,"Άθροισμα",null,{"$f":"SUBTOTAL(109,ΆλλαΈξοδα[ΠΟΣΟ])","v":{"v":0,"d":"0.00 €"}}]
[]
[null,"Αποθεματικό για ενδεχόμενες ζημίες",null,{"v":0,"d":"0.00 €"}]
[]
[null,"Κεφάλαιο κίνησης ",null,{"v":0,"d":"0.00 €"}]
[]
[null,"ΠΡΟΣΘΕΣΤΕ ΕΝΑ ΑΠΟΘΕΜΑΤΙΚΟ ΓΙΑ ΕΝΔΕΧΟΜΕΝΕΣ ΖΗΜΙΕΣ\nΦροντίστε να εξηγήσετε πώς καταλήξατε στο ποσό που βάζετε σε αυτό το αποθεματικό. \n\nΠΡΟΣΔΙΟΡΙΣΤΕ ΤΗΝ ΤΑΜΕΙΑΚΗ ΡΟΗ ΣΑΣ\nΔεν μπορείτε να ανοίξετε με άδειο τραπεζικό λογαριασμό. Χρειάζεστε ένα ταμειακό απόθεμα για να καλύπτετε τις δαπάνες στην αρχή λειτουργίας της επιχείρησή σας. Θα πρέπει να κάνετε μια προβολή ταμειακής ροής 12 μηνών. Έτσι θα μπορέσετε να εκτιμήσετε τις ανάγκες σας όσον αφορά το κεφάλαιο κίνησης. Προς το παρόν, αφήστε κενή αυτή τη γραμμή ή βάλτε την καλύτερη δυνατή εκτίμηση. Αφού ολοκληρώσετε την ταμειακή ροή σας, μπορείτε να επιστρέψετε και να εισαγάγετε το ποσό που θα έχει προκύψει μετά από προσεκτική έρευνα.\n\nΕΙΣΑΓΑΓΕΤΕ ΤΙΣ ΠΗΓΕΣ ΚΕΦΑΛΑΙΩΝ ΣΑΣ\nΤώρα που έχετε εκτιμήσει το κεφάλαιο που θα χρειαστείτε για να ξεκινήσετε, θα πρέπει να στρέψετε την προσοχή σας στο επάνω μέρος αυτού του φύλλου εργασίας. Εισαγάγετε το ποσό που θα τοποθετήσετε εσείς, το πόσο που θα προέλθει από συνεργάτες ή επενδυτές και το ποσό που θα εξασφαλίσετε με δανεισμό."]
[]
[null,"ΠΗΓΕΣ ΚΕΦΑΛΑΙΩΝ"]
[null,"ΕΠΕΝΔΥΣΗ ΙΔΙΟΚΤΗΤΩΝ (ΟΝΟΜΑ ΚΑΙ % ΙΔΙΟΚΤΗΣΙΑΣ)"," ","ΠΟΣΟ"]
[null,"Το όνομα και το ποσοστό ιδιοκτησίας σας",null,{"v":0,"d":"0.00 €"}]
[null,"Άλλος επενδυτής",null,{"v":0,"d":"0.00 €"}]
[null,"Άλλος επενδυτής",null,{"v":0,"d":"0.00 €"}]
[null,"Άλλος επενδυτής",null,{"v":0,"d":"0.00 €"}]
[null,"Άθροισμα",null,{"$f":"SUBTOTAL(109,ΕπενδύσειςΙδιοκτητών[ΠΟΣΟ])","v":{"v":0,"d":"0.00 €"}}]
[]
[null,"ΤΡΑΠΕΖΙΚΑ ΔΑΝΕΙΑ"," ","ΠΟΣΟ"]
[null,"Τράπεζα 1",null,{"v":0,"d":"0.00 €"}]
[null,"Τράπεζα 2",null,{"v":0,"d":"0.00 €"}]
[null,"Τράπεζα 3",null,{"v":0,"d":"0.00 €"}]
[null,"Τράπεζα 4",null,{"v":0,"d":"0.00 €"}]
[null,"Άθροισμα",null,{"$f":"SUBTOTAL(109,ΤραπεζικάΔάνεια[ΠΟΣΟ])","v":{"v":0,"d":"0.00 €"}}]
[]
[null,"ΑΛΛΑ ΔΑΝΕΙΑ"," ","ΠΟΣΟ"]
[null,"Πηγή 1",null,{"v":0,"d":"0.00 €"}]
[null,"Πηγή 2",null,{"v":0,"d":"0.00 €"}]
[null,"Άθροισμα",null,{"$f":"SUBTOTAL(109,ΆλλαΔάνεια[ΠΟΣΟ])","v":{"v":0,"d":"0.00 €"}}]
[]
[null,"ΠΑΡΟΥΣΙΑΣΤΕ ΑΠΟΔΕΙΞΕΙΣ ΔΙΑΣΦΑΛΙΣΕΩΝ\nΕάν πρόκειται να χρησιμοποιήσετε αυτό το πρότυπο για να υποστηρίξετε μια αίτηση για τραπεζικό δάνειο, χρησιμοποιήστε την ενότητα κοντά στο τέλος του προτύπου για να δείξετε ποια πάγια παρέχονται ως διασφάλιση για την εγγύηση του δανείου και για να εκτιμήσετε την αξία αυτών των στοιχείων. Να είστε προετοιμασμένοι να παρουσιάσετε κάποιες αποδείξεις για τις εκτιμήσεις της αξίας των διασφαλίσεων."]
[]
[null,"ΣΥΝΟΠΤΙΚΗ ΚΑΤΑΣΤΑΣΗ"]
[null,"ΠΗΓΗ ΚΕΦΑΛΑΙΟΥ"," ","ΣΥΝΟΛΑ"]
[null,"Επενδύσεις ιδιοκτητών και άλλων",null,{"$f":"ΕπενδύσειςΙδιοκτητών[[#Totals],[ΠΟΣΟ]]","v":{"v":0,"d":"0.00 €"}}]
[null,"Τραπεζικά δάνεια",null,{"$f":"ΤραπεζικάΔάνεια[[#Totals],[ΠΟΣΟ]]","v":{"v":0,"d":"0.00 €"}}]
[null,"Άλλα δάνεια",null,{"$f":"ΆλλαΔάνεια[[#Totals],[ΠΟΣΟ]]","v":{"v":0,"d":"0.00 €"}}]
[null,"Άθροισμα",null,{"$f":"SUBTOTAL(109,ΠηγέςΚεφαλαίων[ΣΥΝΟΛΑ])","v":{"v":0,"d":"0.00 €"}}]
[]
[null,"ΕΞΟΔΑ ΕΝΑΡΞΗΣ"," ","ΣΥΝΟΛΑ"]
[null,"Κτίρια/ακίνητα",null,{"$f":"Ακίνητα[[#Totals],[ΠΟΣΟ]]","v":{"v":0,"d":"0.00 €"}}]
[null,"Βελτιώσεις μισθίων",null,{"$f":"Βελτιώσεις[[#Totals],[ΠΟΣΟ]]","v":{"v":0,"d":"0.00 €"}}]
[null,"Κεφαλαιουχικός εξοπλισμός",null,{"$f":"Κεφάλαιο[[#Totals],[ΠΟΣΟ]]","v":{"v":0,"d":"0.00 €"}}]
[null,"Έξοδα γραφείων / διοικητικά έξοδα",null,{"$f":"ΔιοικητικάΈξοδα[[#Totals],[ΠΟΣΟ]]","v":{"v":0,"d":"0.00 €"}}]
[null,"Απόθεμα έναρξης χρήσης",null,{"$f":"ΑπόθεμαΈναρξηςΧρήσης[[#Totals],[ΠΟΣΟ]]","v":{"v":0,"d":"0.00 €"}}]
[null,"Έξοδα διαφήμισης/προώθησης",null,{"$f":"ΈξοδαΠροώθησης[[#Totals],[ΠΟΣΟ]]","v":{"v":0,"d":"0.00 €"}}]
[null,"Άλλα έξοδα",null,{"$f":"ΆλλαΈξοδα[[#Totals],[ΠΟΣΟ]]","v":{"v":0,"d":"0.00 €"}}]
[null,"Κεφάλαιο για ενδεχόμενες ζημίες",null,{"$f":"SUM('Έξοδα έναρξης'!$C$57)","v":{"v":0,"d":"0.00 €"}}]
[null,"Κεφάλαιο κίνησης",null,{"$f":"SUM('Έξοδα έναρξης'!$C$59)","v":{"v":0,"d":"0.00 €"}}]
[null,"Άθροισμα",null,{"$f":"SUBTOTAL(109,ΈξοδαΈναρξης[ΣΥΝΟΛΑ])","v":{"v":0,"d":"0.00 €"}}]
[]
[null,"ΕΓΓΥΗΣΗ ΚΑΙ ΔΙΑΣΦΑΛΙΣΗ ΓΙΑ ΠΡΟΤΑΣΗ ΔΑΝΕΙΟΥ"]
[null,"ΔΙΑΣΦΑΛΙΣΗ ΓΙΑ ΔΑΝΕΙΑ","ΠΕΡΙΓΡΑΦΗ","ΑΞΙΑ"]
[null,"Ακίνητα",null,{"v":0,"d":"0.00 €"}]
[null,"Άλλη διασφάλιση",null,{"v":0,"d":"0.00 €"}]
[null,"Άλλη διασφάλιση",null,{"v":0,"d":"0.00 €"}]
[null,"Άλλη διασφάλιση",null,{"v":0,"d":"0.00 €"}]
[null,"Άθροισμα",null,{"$f":"SUBTOTAL(109,Διασφάλιση[ΑΞΙΑ])","v":{"v":0,"d":"0.00 €"}}]
[]
[null,"ΙΔΙΟΚΤΗΤΕΣ"," ","  "]
[null,"Το όνομά σας εδώ"]
[null,"Άλλος ιδιοκτήτης"]
[null,"Άλλος ιδιοκτήτης"]
[]
[null,"ΕΓΓΥΗΤΕΣ ΔΑΝΕΙΩΝ (ΕΚΤΟΣ ΤΩΝ ΙΔΙΟΚΤΗΤΩΝ)"," ","  "]
[null,"Εγγυητής δανείου 1"]
[null,"Εγγυητής δανείου 2"]
[null,"Εγγυητής δανείου 3"]